[Event "22nd ETCC Women 2019"]
[Site "Batumi"]
[Date "2019.10.28"]
[Round "5.4"]
[White "Lomaia, Diana"]
[Black "Makka, Ioulia"]
[Result "1/2-1/2"]
[ECO "A40"]
[WhiteElo "1861"]
[BlackElo "2048"]
[Annotator "NA RC"]
[PlyCount "118"]
[EventDate "2019.10.24"]
[EventType "team-tourn"]
[EventCountry "GEO"]
[SourceTitle "playchess.com"]
[Source "ChessBase"]
[SourceQuality "1"]
[WhiteTeam "Georgia"]
[BlackTeam "Greece"]
[WhiteTeamCountry "GEO"]
[BlackTeamCountry "GRE"]
[TimeControl "40/5400+30:1800+30"]

1. d4 {[%emt 0:00:00]} Nf6 {[%emt 0:00:00]} 2. c4 {[%emt 0:00:00]} e6 {[%emt 0:00:00]} 3. g3 {[%emt 0:00:03]} Bb4+ {[%emt 0:01:32]} 4. Bd2 {[%emt 0:00:55]} Qe7 {[%emt 0:00:16]} 5. Nf3 {[%emt 0:01:41]} O-O {[%emt 0:03:07]} 6. Bg2 {[%emt 0:02:20]} Nc6 {[%emt 0:06:36]} 7. Nc3 {[%emt 0:01:52]} Bxc3 {[%emt 0:06:53]} 8. Bxc3 {[%emt 0:00:26]} Ne4 {[%emt 0:01:50]} 9. Rc1 {[%emt 0:01:55]} d5 {[%emt 0:09:09]} 10. O-O {[%emt 0:05:06]} b6 {[%emt 0:26:29]} 11. Qb3 {[%emt 0:16:34]} Nxc3 {[%emt 0:05:39]} 12. Qxc3 {[%emt 0:00:55]} Bb7 {[%emt 0:00:38]} 13. Rfd1 {[%emt 0:01:29]} Nb4 {[%emt 0:07:04]} 14. Qb3 {[%emt 0:21:01]} dxc4 {[%emt 0:02:57]} 15. Rxc4 {[%emt 0:02:16]} a5 {[%emt 0:01:09]} 16. Ne5 {[%emt 0:02:06]} Bxg2 {[%emt 0:07:21]} 17. Kxg2 {[%emt 0:01:36]} Qd6 {[%emt 0:00:57]} 18. a3 {[%emt 0:05:56]} Na6 {[%emt 0:07:18]} 19. Rc6 {[%emt 0:10:02]} Qe7 {[%emt 0:01:24]} 20. Qf3 {[%emt 0:07:49]} Rad8 {[%emt 0:03:14]} 21. Rc3 {[%emt 0:05:09]} Rd6 {[%emt 0:01:27]} 22. Nc6 {[%emt 0:04:30]} Qd7 {[%emt 0:00:44]} 23. b4 {[%emt 0:01:01]} axb4 {[%emt 0:00:38]} 24. axb4 {[%emt 0:00:12]} Nb8 {[%emt 0:00:49]} 25. Ne5 {[%emt 0:02:24]} Qa4 {[%emt 0:00:59]} 26. Rdc1 {[%emt 0:01:17]} Na6 {[%emt 0:02:30]} 27. Nc6 {[%emt 0:01:34]} Qb5 {[%emt 0:01:02]} 28. Qd3 {[%emt 0:01:45]} Qxd3 {[%emt 0:00:36]} 29. Rxd3 {[%emt 0:00:30]} Rxc6 {[%emt 0:01:14]} 30. Rxc6 {[%emt 0:00:09]} Nxb4 {[%emt 0:00:08]} 31. Rxc7 {[%emt 0:00:10]} Nxd3 {[%emt 0:00:10]} 32. exd3 {[%emt 0:00:01]} Rb8 {[%emt 0:00:44]} 33. Rc4 {[%emt 0:00:10]} b5 {[%emt 0:00:54]} 34. Rb4 {[%emt 0:00:01]} Kf8 {[%emt 0:00:15]} 35. Kf3 {[%emt 0:00:12]} Ke7 {[%emt 0:00:09]} 36. Ke4 {[%emt 0:00:47]} Kd6 {[%emt 0:00:38]} 37. f4 {[%emt 0:01:56]} f5+ {[%emt 0:00:41]} 38. Ke3 {[%emt 0:00:56]} Kc6 39. Kd2 Ra8 {[%emt 0:01:30]} 40. Rb2 {[%emt 0:00:00]} Ra4 {[%emt 0:00:00]} 41. Kc3 {[%emt 0:13:19]} Ra3+ 42. Kd2 Kb6 {[%emt 0:07:12]} 43. Ke3 {[%emt 0:03:04]} Ka5 44. Rc2 b4 {[%emt 0:12:01]} 45. Rc8 {[%emt 0:11:14]} Rc3 {[%emt 0:07:47]} 46. Ra8+ {[%emt 0:01:04]} Kb5 {[%emt 0:00:18]} 47. d5 {[%emt 0:02:50]} exd5 {[%emt 0:00:58]} 48. Kd4 {[%emt 0:00:01]} Ra3 {[%emt 0:03:37]} 49. Rc8 {[%emt 0:01:21]} Ka4 {[%emt 0:00:37]} 50. Rc7 {[%emt 0:00:15]} Kb3 {[%emt 0:00:57]} 51. Kxd5 {[%emt 0:02:09]} Ka2 {[%emt 0:00:39]} 52. Rc2+ {[%emt 0:02:36]} Kb1 {[%emt 0:01:12]} 53. Rf2 {[%emt 0:00:21]} b3 {[%emt 0:00:57]} 54. Ke6 {[%emt 0:01:12]} Ra2 {[%emt 0:01:17]} 55. Rf1+ {[%emt 0:00:17]} Kc2 {[%emt 0:00:13]} 56. d4 {[%emt 0:00:14]} b2 {[%emt 0:00:49]} 57. d5 {[%emt 0:00:17]} Kc3 {[%emt 0:00:32]} 58. Rb1 {[%emt 0:00:39]} Ra1 {[%emt 0:00:39]} 59. Rxb2 {[%emt 0:00:08]} Kxb2 {[%emt 0:00:16]} 1/2-1/2

[Event "22nd ETCC Women 2019"]
[Site "Batumi"]
[Date "2019.10.28"]
[Round "5.5"]
[White "Shvayger, Yuliya"]
[Black "Worek, Joanna"]
[Result "1-0"]
[ECO "C48"]
[WhiteElo "2336"]
[BlackElo "2319"]
[Annotator "NA RC"]
[PlyCount "117"]
[EventDate "2019.10.24"]
[EventType "team-tourn"]
[EventCountry "GEO"]
[SourceTitle "playchess.com"]
[Source "ChessBase"]
[SourceQuality "1"]
[WhiteTeam "Israel"]
[BlackTeam "Czech Republic"]
[WhiteTeamCountry "ISR"]
[BlackTeamCountry "CZE"]
[TimeControl "40/5400+30:1800+30"]

1. e4 {[%emt 0:00:00]} e5 {[%emt 0:00:00]} 2. Nf3 {[%emt 0:00:16]} Nc6 {[%emt 0:00:00]} 3. Nc3 {[%emt 0:02:36]} Nf6 {[%emt 0:00:00]} 4. Bb5 {[%emt 0:00:08]} Nd4 {[%emt 0:00:25]} 5. Nxd4 {[%emt 0:05:24]} exd4 {[%emt 0:00:07]} 6. Nd5 {[%emt 0:00:02]} Nxd5 {[%emt 0:01:19]} 7. exd5 {[%emt 0:00:05]} Qe7+ {[%emt 0:00:23]} 8. Qe2 {[%emt 0:00:08]} Qxe2+ {[%emt 0:00:52]} 9. Bxe2 {[%emt 0:02:54]} Bc5 {[%emt 0:01:27]} 10. Bf3 {[%emt 0:05:30]} O-O {[%emt 0:04:36]} 11. O-O {[%emt 0:00:29]} Re8 {[%emt 0:09:34]} 12. d3 {[%emt 0:01:31]} d6 {[%emt 0:06:15]} 13. Bd2 {[%emt 0:00:42]} a5 {[%emt 0:02:27]} 14. a3 {[%emt 0:05:19]} Bd7 {[%emt 0:01:24]} 15. g4 {[%emt 0:01:21]} a4 {[%emt 0:04:34]} 16. Kg2 {[%emt 0:04:49]} Bb6 {[%emt 0:03:11]} 17. Rac1 {[%emt 0:12:36]} Kf8 {[%emt 0:08:31]} 18. Kg3 {[%emt 0:00:33]} Re5 {[%emt 0:05:38]} 19. h4 {[%emt 0:06:31]} Be8 {[%emt 0:10:36]} 20. Be4 {[%emt 0:00:54]} Kg8 {[%emt 0:02:30]} 21. Rfe1 {[%emt 0:01:48]} Bd7 {[%emt 0:00:46]} 22. f4 {[%emt 0:03:41]} Ree8 {[%emt 0:00:05]} 23. f5 {[%emt 0:00:27]} Ba5 {[%emt 0:05:10]} 24. c3 {[%emt 0:16:07]} c5 {[%emt 0:08:11]} 25. Bf4 {[%emt 0:02:23]} dxc3 {[%emt 0:02:38]} 26. bxc3 {[%emt 0:00:07]} Ra6 {[%emt 0:00:30]} 27. Rb1 {[%emt 0:06:25]} b5 {[%emt 0:02:34]} 28. Bd2 {[%emt 0:00:20]} Rb6 {[%emt 0:01:56]} 29. Rb2 {[%emt 0:01:00]} Reb8 {[%emt 0:00:50]} 30. Reb1 {[%emt 0:00:11]} f6 {[%emt 0:02:14]} 31. Kf4 {[%emt 0:01:46]} Kf7 {[%emt 0:01:07]} 32. g5 {[%emt 0:01:20]} R6b7 {[%emt 0:03:55]} 33. Bf3 {[%emt 0:01:50]} fxg5+ {[%emt 0:03:16]} 34. hxg5 {[%emt 0:00:07]} Kg8 {[%emt 0:00:08]} 35. Be4 {[%emt 0:04:16]} Rf8 {[%emt 0:00:29]} 36. Rf1 {[%emt 0:00:43]} Be8 {[%emt 0:04:42]} 37. Kg3 {[%emt 0:02:19]} Rbf7 {[%emt 0:01:44]} 38. Rf3 {[%emt 0:02:53]} Bd7 {[%emt 0:00:46]} 39. Rb1 {[%emt 0:00:02]} Re8 {[%emt 0:02:21]} 40. Rh1 {[%emt 0:00:00]} c4 {[%emt 0:00:00]} 41. f6 {[%emt 0:09:48]} gxf6 {[%emt 0:07:41]} 42. Rxf6 {[%emt 0:04:31]} Rg7 {[%emt 0:04:35]} 43. Kf3 {[%emt 0:02:44]} cxd3 {[%emt 0:01:39]} 44. Bxd3 {[%emt 0:00:07]} Re5 {[%emt 0:03:15]} 45. Rxd6 {[%emt 0:04:05]} Bc7 {[%emt 0:00:34]} 46. Bxh7+ {[%emt 0:01:07]} Rxh7 {[%emt 0:01:03]} 47. Rxh7 {[%emt 0:00:03]} Bxd6 {[%emt 0:00:06]} 48. Rxd7 {[%emt 0:00:06]} Bxa3 {[%emt 0:00:03]} 49. Kf4 {[%emt 0:10:46]} Re2 {[%emt 0:00:27]} 50. Be3 {[%emt 0:00:16]} Bf8 {[%emt 0:02:12]} 51. Bd4 {[%emt 0:01:25]} a3 {[%emt 0:00:45]} 52. Ra7 {[%emt 0:01:15]} Re7 {[%emt 0:04:50]} 53. Ra8 {[%emt 0:00:28]} Rf7+ {[%emt 0:00:22]} 54. Kg4 {[%emt 0:00:49]} Kh7 {[%emt 0:01:06]} 55. Kh5 {[%emt 0:01:35]} Rf5 {[%emt 0:00:13]} 56. Bf6 {[%emt 0:02:15]} a2 {[%emt 0:00:36]} 57. Rxa2 {[%emt 0:01:24]} Rxd5 {[%emt 0:00:01]} 58. Ra8 {[%emt 0:00:24]} Kg8 {[%emt 0:00:22]} 59. Be7 {[%emt 0:00:08]} 1-0

[Event "22nd ETCC Women 2019"]
[Site "Batumi"]
[Date "2019.10.28"]
[Round "5.6"]
[White "Danielian, Elina"]
[Black "Javakhishvili, Lela"]
[Result "0-1"]
[ECO "A30"]
[WhiteElo "2385"]
[BlackElo "2457"]
[Annotator "ChessBase"]
[PlyCount "58"]
[EventDate "2019.10.24"]
[EventType "team-tourn"]
[EventCountry "GEO"]
[SourceTitle "playchess.com"]
[Source "ChessBase"]
[SourceQuality "1"]
[WhiteTeam "Armenia"]
[BlackTeam "Georgia"]
[WhiteTeamCountry "ARM"]
[BlackTeamCountry "GEO"]
[TimeControl "40/5400+30:1800+30"]

1. c4 {[%emt 0:00:00]} c5 {[%emt 0:00:22]} 2. Nf3 {[%emt 0:00:12]} Nc6 {[%emt 0:00:00]} 3. Nc3 {[%emt 0:00:14]} g6 {[%emt 0:00:00]} 4. e3 {[%emt 0:00:41]} Nf6 {[%emt 0:00:00]} 5. d4 cxd4 6. exd4 {[%emt 0:00:34]} d5 {[%emt 0:00:32]} 7. cxd5 {[%emt 0:01:41]} Nxd5 {[%emt 0:00:03]} 8. Qb3 e6 9. Bb5 {[%emt 0:05:55]} Bg7 {[%emt 0:00:33]} 10. Bg5 {[%emt 0:13:28]} f6 {[%emt 0:04:50]} 11. Bd2 {[%emt 0:03:28]} O-O 12. O-O {[%emt 0:01:11]} g5 {[%emt 0:08:51]} 13. h3 {[%emt 0:04:57]} Nce7 {[%emt 0:01:23]} 14. Rfe1 {[%emt 0:02:25]} h5 {[%emt 0:15:28]} 15. Nxd5 {[%emt 0:10:46]} Nxd5 {[%emt 0:00:30]} 16. Bc4 {[%emt 0:05:52]} Qd6 {[%emt 0:12:29]} 17. Rac1 {[%emt 0:02:36]} Bd7 {[%emt 0:06:24]} 18. Bxd5 {[%emt 0:00:39]} Qxd5 {[%emt 0:00:06]} 19. Qxd5 {[%emt 0:02:18]} exd5 {[%emt 0:00:06]} 20. Rc7 {[%emt 0:00:01]} Bc6 {[%emt 0:08:08]} 21. Ree7 {[%emt 0:00:28]} Bh8 {[%emt 0:00:02]} 22. h4 {[%emt 0:24:00]} g4 {[%emt 0:00:06]} 23. Ne1 {[%emt 0:03:04]} Rfe8 {[%emt 0:03:05]} 24. Nd3 {[%emt 0:03:10]} Rxe7 {[%emt 0:01:21]} 25. Rxe7 {[%emt 0:00:01]} Re8 {[%emt 0:06:23]} 26. Rc7 {[%emt 0:00:34]} f5 {[%emt 0:00:24]} 27. Nf4 {[%emt 0:10:22]} Bxd4 28. Bc3 {[%emt 0:02:47]} g3 {[%emt 0:05:27]} 29. Nd3 {[%emt 0:02:05]} Bxc3 {[%emt 0:02:28]} 0-1

[Event "22nd ETCC Women 2019"]
[Site "Batumi"]
[Date "2019.10.28"]
[Round "5.6"]
[White "Olsarova, Karolina"]
[Black "Efroimski, Marsel"]
[Result "0-1"]
[ECO "B30"]
[WhiteElo "2294"]
[BlackElo "2317"]
[Annotator "NA"]
[PlyCount "58"]
[EventDate "2019.10.24"]
[EventType "team-tourn"]
[EventCountry "GEO"]
[SourceTitle "playchess.com"]
[Source "ChessBase"]
[SourceQuality "1"]
[WhiteTeam "Czech Republic"]
[BlackTeam "Israel"]
[WhiteTeamCountry "CZE"]
[BlackTeamCountry "ISR"]
[TimeControl "40/5400+30:1800+30"]

1. e4 {[%emt 0:00:00]} c5 {[%emt 0:01:51]} 2. Nf3 {[%emt 0:00:00]} Nc6 {[%emt 0:00:05]} 3. Bb5 {[%emt 0:00:00]} e5 {[%emt 0:00:03]} 4. O-O {[%emt 0:02:15]} Bd6 {[%emt 0:00:02]} 5. c3 {[%emt 0:03:52]} a6 {[%emt 0:00:09]} 6. Ba4 {[%emt 0:01:05]} b5 {[%emt 0:00:04]} 7. Bc2 {[%emt 0:00:16]} Nge7 {[%emt 0:00:04]} 8. a4 {[%emt 0:04:41]} b4 {[%emt 0:00:04]} 9. d3 {[%emt 0:03:58]} O-O {[%emt 0:00:07]} 10. Nbd2 {[%emt 0:01:46]} Bc7 {[%emt 0:01:10]} 11. Nc4 {[%emt 0:03:53]} Bb7 {[%emt 0:07:44]} 12. Re1 {[%emt 0:04:54]} d5 {[%emt 0:06:44]} 13. exd5 {[%emt 0:01:53]} Nxd5 {[%emt 0:00:43]} 14. Ncxe5 {[%emt 0:13:49]} Nxe5 {[%emt 0:12:32]} 15. Nxe5 {[%emt 0:00:08]} bxc3 {[%emt 0:18:46]} 16. d4 {[%emt 0:11:25]} Nb4 {[%emt 0:11:45]} 17. Bb3 {[%emt 0:04:37]} c2 {[%emt 0:19:15]} 18. Qh5 {[%emt 0:11:08]} Bd5 {[%emt 0:08:13]} 19. Ra3 {[%emt 0:06:37]} Bxe5 {[%emt 0:04:25]} 20. dxe5 {[%emt 0:03:51]} Bxb3 {[%emt 0:00:19]} 21. Rxb3 {[%emt 0:00:10]} Nd3 {[%emt 0:00:15]} 22. e6 {[%emt 0:18:26]} Nxe1 {[%emt 0:03:16]} 23. Rh3 {[%emt 0:00:40]} h6 {[%emt 0:02:22]} 24. Bxh6 {[%emt 0:01:22]} Qd1 {[%emt 0:00:08]} 25. g4 {[%emt 0:00:27]} f5 {[%emt 0:01:49]} 26. Rg3 {[%emt 0:01:03]} Nf3+ {[%emt 0:00:29]} 27. Kg2 {[%emt 0:00:02]} c1=Q {[%emt 0:00:31]} 28. Bxc1 {[%emt 0:00:33]} Qxc1 {[%emt 0:00:21]} 29. gxf5 {[%emt 0:00:40]} Qg1+ {[%emt 0:00:23]} 0-1

[Event "22nd ETCC Women 2019"]
[Site "Batumi"]
[Date "2019.10.28"]
[Round "5.7"]
[White "Khotenashvili, Bela"]
[Black "Gevorgyan, Maria"]
[Result "1-0"]
[ECO "D20"]
[WhiteElo "2446"]
[BlackElo "2260"]
[Annotator "NA"]
[PlyCount "85"]
[EventDate "2019.10.24"]
[EventType "team-tourn"]
[EventCountry "GEO"]
[SourceTitle "playchess.com"]
[Source "ChessBase"]
[SourceQuality "1"]
[WhiteTeam "Georgia"]
[BlackTeam "Armenia"]
[WhiteTeamCountry "GEO"]
[BlackTeamCountry "ARM"]
[TimeControl "40/5400+30:1800+30"]

1. d4 {[%emt 0:00:00]} d5 {[%emt 0:00:00]} 2. c4 {[%emt 0:00:00]} dxc4 {[%emt 0:00:00]} 3. e4 {[%emt 0:00:00]} e5 {[%emt 0:00:12]} 4. Nf3 {[%emt 0:00:00]} exd4 {[%emt 0:00:05]} 5. Bxc4 {[%emt 0:00:05]} Nc6 {[%emt 0:00:04]} 6. O-O {[%emt 0:00:18]} Bc5 {[%emt 0:00:21]} 7. Qb3 {[%emt 0:00:27]} Qd7 {[%emt 0:00:22]} 8. Bd2 {[%emt 0:03:28]} Nh6 {[%emt 0:02:15]} 9. Rc1 {[%emt 0:02:01]} Bb6 {[%emt 0:22:07]} 10. a4 {[%emt 0:16:13]} a6 {[%emt 0:05:52]} 11. a5 {[%emt 0:00:39]} Ba7 {[%emt 0:00:12]} 12. Bf4 {[%emt 0:23:39]} O-O {[%emt 0:17:22]} 13. Nbd2 {[%emt 0:02:43]} Nd8 {[%emt 0:09:12]} 14. Bxh6 {[%emt 0:09:30]} gxh6 {[%emt 0:00:24]} 15. e5 {[%emt 0:00:28]} Qg4 {[%emt 0:09:27]} 16. Re1 {[%emt 0:12:45]} Qg7 {[%emt 0:07:53]} 17. Ne4 {[%emt 0:04:46]} Nc6 {[%emt 0:02:39]} 18. Nf6+ {[%emt 0:07:34]} Kh8 {[%emt 0:00:05]} 19. Nh5 {[%emt 0:06:34]} Qg6 {[%emt 0:04:07]} 20. Ng3 {[%emt 0:00:02]} Rb8 {[%emt 0:03:01]} 21. Bd3 {[%emt 0:01:11]} Qg8 {[%emt 0:04:55]} 22. Qd1 {[%emt 0:02:14]} Bg4 {[%emt 0:01:26]} 23. h3 {[%emt 0:00:10]} Be6 {[%emt 0:00:19]} 24. Qd2 {[%emt 0:00:08]} f5 {[%emt 0:01:05]} 25. Qxh6 {[%emt 0:00:33]} Nb4 {[%emt 0:02:51]} 26. Rad1 {[%emt 0:00:31]} Qg6 {[%emt 0:01:29]} 27. Qf4 {[%emt 0:02:33]} Nd5 {[%emt 0:00:55]} 28. Qc1 {[%emt 0:00:59]} Qg8 {[%emt 0:03:36]} 29. Kh2 {[%emt 0:00:53]} f4 {[%emt 0:00:27]} 30. Ne4 {[%emt 0:00:14]} Qg7 {[%emt 0:00:25]} 31. Neg5 {[%emt 0:01:00]} Bg8 {[%emt 0:00:01]} 32. Bb1 {[%emt 0:03:15]} c5 {[%emt 0:00:20]} 33. e6 {[%emt 0:01:00]} h6 {[%emt 0:00:47]} 34. Re5 {[%emt 0:00:25]} Ne7 {[%emt 0:00:48]} 35. Ne4 {[%emt 0:00:23]} Ng6 {[%emt 0:00:41]} 36. Rh5 {[%emt 0:00:08]} Bxe6 {[%emt 0:00:21]} 37. Nxc5 {[%emt 0:00:10]} Rbc8 {[%emt 0:01:05]} 38. Nxe6 {[%emt 0:00:18]} Rxc1 {[%emt 0:00:23]} 39. Rxc1 {[%emt 0:00:01]} Qh7 {[%emt 0:01:18]} 40. Nxf8 {[%emt 0:00:00]} Qf7 {[%emt 0:00:00]} 41. Rxh6+ {[%emt 0:01:12]} Kg8 {[%emt 0:00:29]} 42. Rxg6+ {[%emt 0:00:28]} Kxf8 {[%emt 0:00:05]} 43. Rc8+ {[%emt 0:00:04]} 1-0

[Event "22nd ETCC Women 2019"]
[Site "Batumi"]
[Date "2019.10.28"]
[Round "5.7"]
[White "Lahav, Michal"]
[Black "Petrova, Kristyna"]
[Result "1-0"]
[ECO "A05"]
[WhiteElo "2221"]
[BlackElo "2259"]
[Annotator "NA RC"]
[PlyCount "127"]
[EventDate "2019.10.24"]
[EventType "team-tourn"]
[EventCountry "GEO"]
[SourceTitle "playchess.com"]
[Source "ChessBase"]
[SourceQuality "1"]
[WhiteTeam "Israel"]
[BlackTeam "Czech Republic"]
[WhiteTeamCountry "ISR"]
[BlackTeamCountry "CZE"]
[TimeControl "40/5400+30:1800+30"]

1. Nf3 {[%emt 0:00:00]} Nf6 {[%emt 0:00:00]} 2. g3 {[%emt 0:00:00]} d5 {[%emt 0:00:04]} 3. c4 {[%emt 0:00:03]} g6 {[%emt 0:05:19]} 4. b3 {[%emt 0:00:21]} c6 {[%emt 0:02:56]} 5. Bb2 {[%emt 0:00:16]} Bg7 {[%emt 0:00:04]} 6. Bg2 {[%emt 0:00:41]} O-O {[%emt 0:01:36]} 7. O-O {[%emt 0:00:25]} a5 {[%emt 0:06:15]} 8. Qc2 {[%emt 0:03:35]} a4 {[%emt 0:12:48]} 9. d3 {[%emt 0:16:21]} Na6 {[%emt 0:11:45]} 10. Nbd2 {[%emt 0:01:43]} axb3 {[%emt 0:20:41]} 11. axb3 {[%emt 0:00:33]} Nb4 {[%emt 0:00:59]} 12. Qb1 {[%emt 0:07:48]} Bg4 {[%emt 0:04:03]} 13. h3 {[%emt 0:04:08]} Bxf3 {[%emt 0:03:56]} 14. Nxf3 {[%emt 0:00:51]} Rxa1 {[%emt 0:02:48]} 15. Qxa1 {[%emt 0:01:19]} Na6 {[%emt 0:04:13]} 16. Qa4 {[%emt 0:12:49]} e6 {[%emt 0:07:36]} 17. b4 {[%emt 0:03:30]} Nd7 {[%emt 0:00:55]} 18. Bxg7 {[%emt 0:11:17]} Kxg7 {[%emt 0:00:01]} 19. b5 {[%emt 0:00:16]} Nac5 {[%emt 0:00:11]} 20. Qa7 {[%emt 0:07:05]} Qb8 {[%emt 0:06:55]} 21. Qa1+ {[%emt 0:02:02]} Kg8 {[%emt 0:00:04]} 22. Rb1 {[%emt 0:00:32]} Qc8 {[%emt 0:02:38]} 23. Nd2 {[%emt 0:03:10]} dxc4 {[%emt 0:01:09]} 24. Nxc4 {[%emt 0:00:51]} cxb5 {[%emt 0:00:59]} 25. Rxb5 {[%emt 0:00:23]} b6 {[%emt 0:02:25]} 26. Nxb6 {[%emt 0:02:17]} Nxb6 {[%emt 0:00:03]} 27. Rxb6 {[%emt 0:00:22]} Qd8 {[%emt 0:00:47]} 28. Rb5 {[%emt 0:06:32]} Nd7 {[%emt 0:01:07]} 29. h4 {[%emt 0:03:49]} h5 {[%emt 0:00:28]} 30. Bf3 {[%emt 0:00:33]} Qf6 {[%emt 0:01:14]} 31. d4 {[%emt 0:02:16]} Rd8 {[%emt 0:00:40]} 32. Kg2 {[%emt 0:00:29]} Nf8 {[%emt 0:00:27]} 33. e3 {[%emt 0:00:15]} Qe7 {[%emt 0:00:28]} 34. Qa5 {[%emt 0:00:51]} Nh7 {[%emt 0:00:41]} 35. Rb7 {[%emt 0:06:55]} Rd7 {[%emt 0:00:07]} 36. Rb8+ {[%emt 0:01:52]} Kg7 {[%emt 0:00:06]} 37. Ra8 {[%emt 0:01:11]} Qd6 {[%emt 0:00:49]} 38. Rc8 {[%emt 0:00:45]} Nf6 {[%emt 0:00:39]} 39. Rc6 {[%emt 0:00:30]} Qb8 {[%emt 0:00:30]} 40. Qc5 {[%emt 0:00:00]} Rd8 {[%emt 0:00:00]} 41. Rxe6 {[%emt 0:12:05]} fxe6 {[%emt 0:03:42]} 42. Qe7+ {[%emt 0:00:07]} Kh6 {[%emt 0:00:59]} 43. Qxf6 {[%emt 0:00:05]} Rf8 {[%emt 0:09:35]} 44. Qxe6 {[%emt 0:03:00]} Qd8 {[%emt 0:00:08]} 45. Be4 {[%emt 0:04:12]} Rf6 {[%emt 0:00:04]} 46. Qe5 {[%emt 0:02:10]} Qf8 {[%emt 0:01:08]} 47. Kg1 {[%emt 0:01:25]} Kg7 {[%emt 0:01:19]} 48. Qc7+ {[%emt 0:02:27]} Rf7 {[%emt 0:00:45]} 49. Qe5+ {[%emt 0:06:11]} Rf6 {[%emt 0:00:28]} 50. Kh2 {[%emt 0:00:38]} Qb4 {[%emt 0:03:19]} 51. Kg2 {[%emt 0:02:37]} Qf8 {[%emt 0:03:23]} 52. f4 {[%emt 0:01:46]} Qb4 {[%emt 0:01:34]} 53. Bd5 {[%emt 0:00:25]} Qf8 {[%emt 0:03:25]} 54. Kh2 {[%emt 0:00:37]} Kh6 {[%emt 0:00:50]} 55. Be6 {[%emt 0:00:34]} Kg7 {[%emt 0:03:49]} 56. d5 {[%emt 0:00:24]} Qb4 {[%emt 0:00:13]} 57. Bh3 {[%emt 0:00:38]} Kf7 {[%emt 0:00:43]} 58. e4 {[%emt 0:00:27]} Qd2+ {[%emt 0:01:27]} 59. Bg2 {[%emt 0:00:01]} Qd3 {[%emt 0:00:13]} 60. Qc7+ {[%emt 0:00:33]} Kf8 {[%emt 0:00:29]} 61. e5 {[%emt 0:00:26]} Ra6 {[%emt 0:00:12]} 62. e6 {[%emt 0:00:11]} Kg8 {[%emt 0:00:31]} 63. Qf7+ {[%emt 0:00:15]} Kh8 {[%emt 0:00:03]} 64. e7 {[%emt 0:00:11]} 1-0

[Event "22nd ETCC Women 2019"]
[Site "Batumi"]
[Date "2019.10.28"]
[Round "5.8"]
[White "Sikorova, Olga"]
[Black "Nesterovskaya, Anzhelika"]
[Result "0-1"]
[ECO "A10"]
[WhiteElo "2234"]
[BlackElo "2124"]
[Annotator "NA"]
[PlyCount "94"]
[EventDate "2019.10.24"]
[EventType "team-tourn"]
[EventCountry "GEO"]
[SourceTitle "playchess.com"]
[Source "ChessBase"]
[SourceQuality "1"]
[WhiteTeam "Czech Republic"]
[BlackTeam "Israel"]
[WhiteTeamCountry "CZE"]
[BlackTeamCountry "ISR"]
[TimeControl "40/5400+30:1800+30"]

1. c4 {[%emt 0:00:00]} f5 {[%emt 0:00:00]} 2. Nc3 {[%emt 0:00:04]} Nf6 {[%emt 0:00:01]} 3. g3 {[%emt 0:00:32]} g6 {[%emt 0:00:38]} 4. Bg2 {[%emt 0:00:19]} Bg7 {[%emt 0:00:15]} 5. d3 {[%emt 0:02:33]} O-O {[%emt 0:00:41]} 6. Nf3 {[%emt 0:07:20]} d6 {[%emt 0:00:38]} 7. O-O {[%emt 0:00:35]} e5 {[%emt 0:00:28]} 8. Bd2 {[%emt 0:05:02]} h6 {[%emt 0:01:50]} 9. b4 {[%emt 0:12:49]} Nc6 {[%emt 0:01:25]} 10. b5 {[%emt 0:05:16]} Ne7 {[%emt 0:00:49]} 11. Rc1 {[%emt 0:04:40]} g5 {[%emt 0:06:36]} 12. Ne1 {[%emt 0:01:06]} f4 {[%emt 0:06:09]} 13. Nc2 {[%emt 0:05:53]} Qe8 {[%emt 0:14:55]} 14. Nb4 {[%emt 0:04:23]} c6 {[%emt 0:12:52]} 15. bxc6 {[%emt 0:03:15]} bxc6 {[%emt 0:01:33]} 16. Ne4 {[%emt 0:12:59]} Nxe4 {[%emt 0:10:39]} 17. Bxe4 {[%emt 0:03:32]} Bh3 {[%emt 0:04:20]} 18. Bg2 {[%emt 0:03:15]} Bxg2 {[%emt 0:05:40]} 19. Kxg2 {[%emt 0:00:03]} g4 {[%emt 0:13:40]} 20. f3 {[%emt 0:02:01]} fxg3 {[%emt 0:07:14]} 21. hxg3 {[%emt 0:00:32]} gxf3+ {[%emt 0:00:19]} 22. exf3 {[%emt 0:02:56]} Qg6 {[%emt 0:00:34]} 23. Qe2 {[%emt 0:02:45]} a5 {[%emt 0:02:12]} 24. Nc2 {[%emt 0:01:09]} Nf5 {[%emt 0:00:05]} 25. g4 {[%emt 0:03:35]} d5 {[%emt 0:01:49]} 26. Rh1 {[%emt 0:02:57]} Nd6 {[%emt 0:02:38]} 27. c5 {[%emt 0:04:17]} Nf7 {[%emt 0:01:22]} 28. Ne3 {[%emt 0:03:40]} Nd8 {[%emt 0:00:08]} 29. Rh5 {[%emt 0:00:54]} Ne6 {[%emt 0:00:49]} 30. Nc2 {[%emt 0:04:36]} Rf7 {[%emt 0:01:03]} 31. Rch1 {[%emt 0:00:53]} Raf8 {[%emt 0:00:15]} 32. Rxh6 {[%emt 0:00:54]} Bxh6 {[%emt 0:00:28]} 33. Rxh6 {[%emt 0:00:12]} Qg7 {[%emt 0:00:01]} 34. Rxe6 {[%emt 0:00:51]} Rxf3 {[%emt 0:00:03]} 35. g5 {[%emt 0:00:11]} Qh7 {[%emt 0:00:42]} 36. Rh6 {[%emt 0:01:10]} Rf2+ {[%emt 0:00:03]} 37. Qxf2 {[%emt 0:00:08]} Rxf2+ {[%emt 0:00:03]} 38. Kxf2 {[%emt 0:00:04]} Qxd3 {[%emt 0:00:04]} 39. Ke1 {[%emt 0:01:13]} Qxc2 {[%emt 0:00:07]} 40. Rxc6 Qb1+ {[%emt 0:00:00]} 41. Kf2 {[%emt 0:01:07]} Qxa2 {[%emt 0:00:18]} 42. Ke1 {[%emt 0:00:23]} Qb1+ {[%emt 0:00:11]} 43. Kf2 {[%emt 0:00:07]} Qf5+ {[%emt 0:00:31]} 44. Ke1 {[%emt 0:01:22]} d4 {[%emt 0:02:04]} 45. Rb6 {[%emt 0:07:34]} d3 {[%emt 0:03:38]} 46. Rf6 {[%emt 0:07:42]} Qg4 {[%emt 0:01:44]} 47. Rf2 {[%emt 0:01:07]} Qe4+ {[%emt 0:00:05]} 0-1